[Event "Festival Groningen-A 2024"]
[Site "Groningen"]
[Date "2024.12.21"]
[Round "1.20"]
[White "Zecha, Oscar"]
[Black "Van der Hagen, Loek"]
[Result "1/2-1/2"]
[ECO "B66"]
[WhiteElo "2134"]
[BlackElo "2315"]
[Annotator "RC"]
[PlyCount "73"]
[EventDate "2024.12.21"]
[EventType "swiss"]
[EventCountry "NED"]
[SourceTitle "playchess.com"]
[Source "ChessBase"]
[SourceQuality "1"]
[TimeControl "40/5400+30:1800+30"]

1. e4 {[%emt 0:00:10]} c5 {[%emt 0:00:37]} 2. Nf3 {[%emt 0:00:06]} Nc6 {[%emt 0:00:11]} 3. d4 {[%emt 0:00:16]} cxd4 {[%emt 0:00:09]} 4. Nxd4 {[%emt 0:00:05]} Nf6 {[%emt 0:00:07]} 5. Nc3 {[%emt 0:00:17]} d6 {[%emt 0:00:19]} 6. Bg5 {[%emt 0:01:08]} Bd7 {[%emt 0:00:16]} 7. Qd2 {[%emt 0:01:56]} a6 {[%emt 0:00:10]} 8. Nxc6 {[%emt 0:02:38]} Bxc6 {[%emt 0:01:28]} 9. f3 {[%emt 0:00:24]} e6 {[%emt 0:01:58]} 10. O-O-O {[%emt 0:00:35]} h6 {[%emt 0:02:39]} 11. Bf4 {[%emt 0:06:36]} d5 {[%emt 0:16:12]} 12. exd5 {[%emt 0:00:56]} Nxd5 {[%emt 0:00:10]} 13. Nxd5 {[%emt 0:01:02]} Qxd5 {[%emt 0:00:24]} 14. c4 {[%emt 0:08:30]} Qxd2+ {[%emt 0:00:18]} 15. Rxd2 {[%emt 0:00:25]} Bc5 {[%emt 0:02:55]} 16. Kb1 {[%emt 0:08:35]} Ke7 {[%emt 0:00:36]} 17. Be2 {[%emt 0:03:53]} Rad8 {[%emt 0:15:00]} 18. Rhd1 {[%emt 0:02:48]} a5 {[%emt 0:15:31]} 19. Rxd8 {[%emt 0:06:17]} Rxd8 {[%emt 0:00:07]} 20. Rxd8 {[%emt 0:00:12]} Kxd8 {[%emt 0:00:05]} 21. Bd2 {[%emt 0:02:27]} b6 {[%emt 0:01:00]} 22. Kc2 {[%emt 0:00:58]} Kd7 {[%emt 0:02:42]} 23. g4 {[%emt 0:19:05]} e5 {[%emt 0:04:21]} 24. f4 {[%emt 0:10:52]} Ke6 {[%emt 0:14:36]} 25. f5+ {[%emt 0:02:41]} Kf6 {[%emt 0:02:51]} 26. h4 {[%emt 0:00:33]} Bf2 {[%emt 0:10:33]} 27. h5 {[%emt 0:01:17]} Be4+ {[%emt 0:01:39]} 28. Kc1 {[%emt 0:03:31]} Bg2 {[%emt 0:04:18]} 29. b3 {[%emt 0:03:47]} Bg3 {[%emt 0:01:51]} 30. Kb2 {[%emt 0:02:03]} Bf4 {[%emt 0:00:40]} 31. Be1 {[%emt 0:00:05]} e4 {[%emt 0:01:14]} 32. Bh4+ {[%emt 0:02:56]} Bg5 {[%emt 0:00:44]} 33. Bf2 {[%emt 0:01:59]} Ke5 {[%emt 0:00:34]} 34. Bxb6 {[%emt 0:00:45]} Bf3 {[%emt 0:00:40]} 35. Bc7+ {[%emt 0:01:32]} Kd4 {[%emt 0:00:18]} 36. Bb6+ {[%emt 0:00:06]} Ke5 {[%emt 0:00:06]} 37. Bc7+ {[%emt 0:00:20]} 1/2-1/2

[Event "Festival Groningen-A 2024"]
[Site "Groningen"]
[Date "2024.12.21"]
[Round "1.21"]
[White "Laxman, R.R."]
[Black "Noordenbos, Daan"]
[Result "1-0"]
[ECO "E62"]
[WhiteElo "2310"]
[BlackElo "2130"]
[Annotator "RC"]
[PlyCount "45"]
[EventDate "2024.12.21"]
[EventType "swiss"]
[EventCountry "NED"]
[SourceTitle "playchess.com"]
[Source "ChessBase"]
[SourceQuality "1"]
[TimeControl "40/5400+30:1800+30"]

1. d4 {[%emt 0:00:05]} Nf6 {[%emt 0:00:17]} 2. c4 {[%emt 0:00:07]} g6 {[%emt 0:00:15]} 3. Nf3 {[%emt 0:01:09]} Bg7 {[%emt 0:01:14]} 4. g3 {[%emt 0:00:47]} O-O {[%emt 0:06:00]} 5. Bg2 {[%emt 0:02:58]} d6 {[%emt 0:05:18]} 6. O-O {[%emt 0:01:02]} Nc6 {[%emt 0:03:59]} 7. Nc3 {[%emt 0:00:27]} e5 {[%emt 0:01:18]} 8. d5 {[%emt 0:04:18]} Ne7 {[%emt 0:00:31]} 9. e4 {[%emt 0:00:23]} a5 {[%emt 0:07:35]} 10. Be3 {[%emt 0:01:07]} Ng4 {[%emt 0:00:46]} 11. Bd2 {[%emt 0:00:05]} Bh6 {[%emt 0:08:10]} 12. Ng5 {[%emt 0:17:02]} Nc6 {[%emt 0:18:16]} 13. dxc6 {[%emt 0:03:29]} Bxg5 {[%emt 0:00:23]} 14. cxb7 {[%emt 0:00:15]} Bxb7 {[%emt 0:00:20]} 15. f4 {[%emt 0:00:07]} exf4 {[%emt 0:05:29]} 16. Qxg4 {[%emt 0:00:50]} h5 {[%emt 0:00:15]} 17. Qd1 {[%emt 0:00:20]} fxg3 {[%emt 0:00:32]} 18. hxg3 {[%emt 0:00:06]} h4 {[%emt 0:01:46]} 19. gxh4 {[%emt 0:00:13]} Bxh4 {[%emt 0:00:28]} 20. Qf3 {[%emt 0:02:48]} f5 {[%emt 0:02:57]} 21. Nd5 {[%emt 0:02:33]} c6 {[%emt 0:00:46]} 22. Nf4 {[%emt 0:00:12]} Qg5 {[%emt 0:02:26]} 23. Rad1 {[%emt 0:01:50]} 1-0

[Event "Festival Groningen-A 2024"]
[Site "Groningen"]
[Date "2024.12.21"]
[Round "1.22"]
[White "Jakhari, Ansh"]
[Black "Van Foreest, Machteld"]
[Result "1/2-1/2"]
[ECO "D35"]
[WhiteElo "2126"]
[BlackElo "2309"]
[Annotator "RC"]
[PlyCount "64"]
[EventDate "2024.12.21"]
[EventType "swiss"]
[EventCountry "NED"]
[SourceTitle "playchess.com"]
[Source "ChessBase"]
[SourceQuality "1"]
[TimeControl "40/5400+30:1800+30"]

1. c4 {[%emt 0:00:04]} e6 {[%emt 0:00:42]} 2. Nc3 {[%emt 0:00:31]} d5 {[%emt 0:00:12]} 3. cxd5 {[%emt 0:03:09]} exd5 {[%emt 0:00:10]} 4. d4 {[%emt 0:02:17]} Nf6 {[%emt 0:01:32]} 5. Bf4 {[%emt 0:03:05]} Bd6 {[%emt 0:04:00]} 6. Bxd6 {[%emt 0:19:40]} Qxd6 {[%emt 0:00:49]} 7. e3 {[%emt 0:00:09]} Bf5 {[%emt 0:04:45]} 8. Bd3 {[%emt 0:00:24]} Bxd3 {[%emt 0:01:18]} 9. Qxd3 {[%emt 0:00:01]} O-O {[%emt 0:00:07]} 10. Nf3 {[%emt 0:00:48]} Nbd7 {[%emt 0:00:57]} 11. O-O {[%emt 0:00:10]} c6 {[%emt 0:00:10]} 12. h3 {[%emt 0:08:35]} Rfe8 {[%emt 0:02:14]} 13. Nd2 {[%emt 0:01:10]} Nf8 {[%emt 0:02:31]} 14. a3 {[%emt 0:06:09]} Ne6 {[%emt 0:07:48]} 15. Nf3 {[%emt 0:19:49]} h6 {[%emt 0:06:53]} 16. Rad1 {[%emt 0:06:51]} a5 {[%emt 0:02:06]} 17. Ne5 {[%emt 0:04:02]} c5 {[%emt 0:03:49]} 18. Ng4 {[%emt 0:04:19]} Nxg4 {[%emt 0:00:59]} 19. hxg4 {[%emt 0:00:02]} cxd4 {[%emt 0:01:45]} 20. Nb5 {[%emt 0:01:01]} Qd7 {[%emt 0:07:03]} 21. Nxd4 {[%emt 0:00:13]} Nxd4 {[%emt 0:00:08]} 22. Qxd4 {[%emt 0:00:08]} Rad8 {[%emt 0:00:03]} 23. f3 {[%emt 0:02:51]} Re6 {[%emt 0:02:50]} 24. Rd3 {[%emt 0:01:42]} Qb5 {[%emt 0:02:48]} 25. Rc1 {[%emt 0:01:42]} Rc6 {[%emt 0:01:17]} 26. Rcd1 {[%emt 0:05:11]} Rc4 {[%emt 0:07:35]} 27. Qe5 {[%emt 0:00:18]} Re8 {[%emt 0:01:03]} 28. Qxd5 {[%emt 0:00:41]} Qxd5 {[%emt 0:00:05]} 29. Rxd5 {[%emt 0:00:02]} Rxe3 {[%emt 0:00:08]} 30. Rd8+ {[%emt 0:01:21]} Kh7 {[%emt 0:00:06]} 31. R8d7 {[%emt 0:02:00]} Re2 {[%emt 0:02:24]} 32. R1d2 {[%emt 0:02:26]} Rc1+ {[%emt 0:03:25]} 1/2-1/2

[Event "Festival Groningen-A 2024"]
[Site "Groningen"]
[Date "2024.12.21"]
[Round "1.23"]
[White "Manish Anto Cristiano F"]
[Black "Khoo-Thwe, Louis"]
[Result "1-0"]
[ECO "C99"]
[WhiteElo "2296"]
[BlackElo "2124"]
[Annotator "RC"]
[PlyCount "91"]
[EventDate "2024.12.21"]
[EventType "swiss"]
[EventCountry "NED"]
[SourceTitle "playchess.com"]
[Source "ChessBase"]
[SourceQuality "1"]
[TimeControl "40/5400+30:1800+30"]

1. e4 {[%emt 0:00:04]} e5 {[%emt 0:00:08]} 2. Nf3 {[%emt 0:00:07]} Nc6 {[%emt 0:00:09]} 3. Bb5 {[%emt 0:00:07]} a6 {[%emt 0:00:12]} 4. Ba4 {[%emt 0:00:10]} Nf6 {[%emt 0:00:09]} 5. O-O {[%emt 0:00:09]} Be7 {[%emt 0:00:14]} 6. Re1 {[%emt 0:00:12]} b5 {[%emt 0:00:09]} 7. Bb3 {[%emt 0:00:06]} d6 {[%emt 0:00:04]} 8. c3 {[%emt 0:00:09]} O-O {[%emt 0:00:09]} 9. h3 {[%emt 0:00:06]} Na5 {[%emt 0:00:07]} 10. Bc2 {[%emt 0:00:07]} c5 {[%emt 0:00:05]} 11. d4 {[%emt 0:00:08]} Qc7 {[%emt 0:00:07]} 12. Nbd2 {[%emt 0:00:35]} cxd4 {[%emt 0:00:19]} 13. cxd4 {[%emt 0:00:11]} Rd8 {[%emt 0:00:07]} 14. d5 {[%emt 0:00:52]} Bd7 {[%emt 0:01:40]} 15. Nf1 {[%emt 0:04:38]} Rdc8 {[%emt 0:03:20]} 16. Bd3 {[%emt 0:04:40]} Nb7 {[%emt 0:02:07]} 17. Bd2 {[%emt 0:03:37]} Nc5 {[%emt 0:01:37]} 18. Rc1 {[%emt 0:00:12]} Qb7 {[%emt 0:04:51]} 19. Bb1 {[%emt 0:03:25]} a5 {[%emt 0:09:26]} 20. g4 {[%emt 0:03:28]} Na4 {[%emt 0:05:55]} 21. Qb3 {[%emt 0:04:02]} Bd8 {[%emt 0:10:27]} 22. Ng3 {[%emt 0:02:37]} Bb6 {[%emt 0:07:15]} 23. Rxc8+ {[%emt 0:11:24]} Rxc8 {[%emt 0:01:43]} 24. Nf5 {[%emt 0:00:33]} Bxf5 {[%emt 0:01:30]} 25. gxf5 {[%emt 0:00:15]} Nc5 {[%emt 0:04:04]} 26. Qd1 {[%emt 0:00:38]} Na4 {[%emt 0:03:35]} 27. Bc1 {[%emt 0:03:40]} Qc7 {[%emt 0:01:42]} 28. Kg2 {[%emt 0:04:44]} g6 {[%emt 0:04:23]} 29. Qe2 {[%emt 0:05:24]} Qxc1 {[%emt 0:17:50]} 30. Rxc1 {[%emt 0:00:37]} Rxc1 {[%emt 0:00:07]} 31. Nd2 {[%emt 0:08:22]} Nxb2 {[%emt 0:06:28]} 32. Qxb5 {[%emt 0:01:10]} Bd4 {[%emt 0:00:22]} 33. Qb8+ {[%emt 0:05:01]} Kg7 {[%emt 0:00:11]} 34. Qxd6 {[%emt 0:00:19]} Rd1 {[%emt 0:07:25]} 35. Nf3 {[%emt 0:03:00]} Rxb1 {[%emt 0:00:32]} 36. Nxd4 {[%emt 0:01:31]} exd4 {[%emt 0:00:07]} 37. e5 {[%emt 0:00:33]} Ne4 {[%emt 0:00:45]} 38. f6+ {[%emt 0:00:52]} Kh6 {[%emt 0:00:06]} 39. Qb6 {[%emt 0:01:11]} d3 {[%emt 0:05:41]} 40. Qe3+ {[%emt 0:00:11]} g5 {[%emt 0:00:23]} 41. Qxe4 {[%emt 0:30:12]} Rd1 {[%emt 0:31:25]} 42. h4 {[%emt 0:02:58]} d2 {[%emt 0:02:10]} 43. Qg4 {[%emt 0:04:22]} gxh4 {[%emt 0:01:17]} 44. Qxh4+ {[%emt 0:00:18]} Kg6 {[%emt 0:00:07]} 45. Qg4+ {[%emt 0:00:04]} Kh6 {[%emt 0:00:06]} 46. d6 {[%emt 0:03:05]} 1-0

[Event "Festival Groningen-A 2024"]
[Site "Groningen"]
[Date "2024.12.21"]
[Round "1.24"]
[White "Kanis, Sierk"]
[Black "Schoorl, Rob"]
[Result "0-1"]
[ECO "E90"]
[WhiteElo "2116"]
[BlackElo "2295"]
[Annotator "RC"]
[PlyCount "52"]
[EventDate "2024.12.21"]
[EventType "swiss"]
[EventCountry "NED"]
[SourceTitle "playchess.com"]
[Source "ChessBase"]
[SourceQuality "1"]
[TimeControl "40/5400+30:1800+30"]

1. d4 {[%emt 0:00:03]} Nf6 {[%emt 0:00:14]} 2. c4 {[%emt 0:00:07]} c5 {[%emt 0:00:10]} 3. d5 {[%emt 0:00:04]} g6 {[%emt 0:00:05]} 4. Nc3 {[%emt 0:00:04]} Bg7 {[%emt 0:00:06]} 5. e4 {[%emt 0:00:04]} d6 {[%emt 0:00:06]} 6. Bd3 {[%emt 0:00:05]} O-O {[%emt 0:00:19]} 7. Nf3 {[%emt 0:00:04]} e6 {[%emt 0:00:42]} 8. O-O {[%emt 0:00:06]} exd5 {[%emt 0:00:12]} 9. exd5 {[%emt 0:00:06]} Bg4 {[%emt 0:00:20]} 10. h3 {[%emt 0:00:10]} Bxf3 {[%emt 0:00:19]} 11. Qxf3 {[%emt 0:00:04]} Nbd7 {[%emt 0:00:23]} 12. Qd1 {[%emt 0:00:17]} Ne8 {[%emt 0:02:10]} 13. Bd2 {[%emt 0:00:32]} f5 {[%emt 0:09:04]} 14. f4 {[%emt 0:00:38]} a6 {[%emt 0:04:25]} 15. Rb1 {[%emt 0:02:03]} Nc7 {[%emt 0:03:20]} 16. g4 {[%emt 0:00:53]} Qf6 {[%emt 0:14:18]} 17. Kg2 {[%emt 0:01:09]} b5 {[%emt 0:02:38]} 18. b3 {[%emt 0:01:12]} Qd4 {[%emt 0:30:48]} 19. Qc2 {[%emt 0:06:37]} fxg4 {[%emt 0:02:35]} 20. hxg4 {[%emt 0:01:35]} bxc4 {[%emt 0:00:21]} 21. bxc4 {[%emt 0:01:42]} Ne5 {[%emt 0:00:22]} 22. Rb7 {[%emt 0:36:39]} Nxd3 {[%emt 0:02:26]} 23. Rxc7 {[%emt 0:00:24]} Rae8 {[%emt 0:03:27]} 24. Rxg7+ {[%emt 0:07:18]} Kxg7 {[%emt 0:01:19]} 25. Nd1 {[%emt 0:11:08]} Re2+ {[%emt 0:05:15]} 26. Kg3 {[%emt 0:01:09]} Rxf4 {[%emt 0:03:41]} 0-1

[Event "Festival Groningen-A 2024"]
[Site "Groningen"]
[Date "2024.12.21"]
[Round "1.25"]
[White "Ivanov, Dmytry"]
[Black "Spit, Vincent"]
[Result "1-0"]
[ECO "D78"]
[WhiteElo "2072"]
[BlackElo "2113"]
[Annotator "RC"]
[PlyCount "65"]
[EventDate "2024.12.21"]
[EventType "swiss"]
[EventCountry "NED"]
[SourceTitle "playchess.com"]
[Source "ChessBase"]
[SourceQuality "1"]
[TimeControl "40/5400+30:1800+30"]

1. d4 {[%emt 0:00:05]} Nf6 {[%emt 0:00:13]} 2. Nf3 {[%emt 0:00:10]} g6 {[%emt 0:00:47]} 3. c4 {[%emt 0:00:27]} Bg7 {[%emt 0:00:16]} 4. g3 {[%emt 0:00:25]} O-O {[%emt 0:01:21]} 5. Bg2 {[%emt 0:00:12]} c6 {[%emt 0:04:50]} 6. O-O {[%emt 0:08:48]} d5 {[%emt 0:00:27]} 7. Nc3 {[%emt 0:00:09]} dxc4 {[%emt 0:04:10]} 8. a4 {[%emt 0:00:36]} Nd5 {[%emt 0:04:41]} 9. e4 {[%emt 0:06:12]} Nxc3 {[%emt 0:03:12]} 10. bxc3 {[%emt 0:00:30]} c5 {[%emt 0:01:49]} 11. Be3 {[%emt 0:02:54]} Bg4 {[%emt 0:07:03]} 12. Rb1 {[%emt 0:00:53]} Qc7 {[%emt 0:03:49]} 13. dxc5 {[%emt 0:04:38]} Nc6 {[%emt 0:09:53]} 14. Qc2 {[%emt 0:02:33]} Rfd8 {[%emt 0:01:30]} 15. Bf4 {[%emt 0:26:50]} Ne5 {[%emt 0:03:17]} 16. Nd4 {[%emt 0:03:04]} Qc8 {[%emt 0:09:34]} 17. Qa2 {[%emt 0:05:12]} Nd3 {[%emt 0:05:57]} 18. Qxc4 {[%emt 0:05:48]} Nxf4 {[%emt 0:02:42]} 19. gxf4 {[%emt 0:00:13]} Bh3 {[%emt 0:01:21]} 20. f5 {[%emt 0:01:22]} Bxg2 {[%emt 0:01:13]} 21. Kxg2 {[%emt 0:00:10]} Qc7 {[%emt 0:05:34]} 22. f4 {[%emt 0:04:59]} Rac8 {[%emt 0:03:16]} 23. fxg6 {[%emt 0:02:53]} hxg6 {[%emt 0:00:07]} 24. f5 {[%emt 0:01:48]} Qxc5 {[%emt 0:01:22]} 25. Qxc5 {[%emt 0:00:17]} Rxc5 {[%emt 0:00:07]} 26. fxg6 {[%emt 0:00:23]} fxg6 {[%emt 0:03:49]} 27. Rxb7 {[%emt 0:05:21]} Bxd4 {[%emt 0:05:14]} 28. cxd4 {[%emt 0:00:13]} Rxd4 {[%emt 0:00:10]} 29. Rxe7 {[%emt 0:00:17]} Rg5+ {[%emt 0:01:49]} 30. Kf3 {[%emt 0:00:29]} Rxa4 {[%emt 0:00:14]} 31. Rc1 {[%emt 0:02:23]} Kf8 {[%emt 0:00:23]} 32. Rh7 {[%emt 0:00:14]} Kg8 {[%emt 0:03:37]} 33. Rb7 {[%emt 0:00:15]} 1-0

[Event "Festival Groningen-A 2024"]
[Site "Groningen"]
[Date "2024.12.21"]
[Round "1.26"]
[White "Ponnio, Toni"]
[Black "Pham, Khoi"]
[Result "0-1"]
[ECO "A30"]
[WhiteElo "2111"]
[BlackElo "2285"]
[Annotator "RC"]
[PlyCount "99"]
[EventDate "2024.12.21"]
[EventType "swiss"]
[EventCountry "NED"]
[SourceTitle "playchess.com"]
[Source "ChessBase"]
[SourceQuality "1"]
[TimeControl "40/5400+30:1800+30"]

1. Nf3 {[%emt 0:00:06]} Nf6 {[%emt 0:00:04]} 2. g3 {[%emt 0:00:13]} b6 {[%emt 0:00:05]} 3. Bg2 {[%emt 0:00:09]} Bb7 {[%emt 0:00:05]} 4. c4 {[%emt 0:00:40]} g6 {[%emt 0:00:23]} 5. Nc3 {[%emt 0:04:00]} Bg7 {[%emt 0:01:02]} 6. O-O {[%emt 0:00:51]} O-O {[%emt 0:00:13]} 7. Re1 {[%emt 0:05:15]} c5 {[%emt 0:02:42]} 8. e4 {[%emt 0:00:18]} Nc6 {[%emt 0:01:15]} 9. d3 {[%emt 0:06:18]} d6 {[%emt 0:00:54]} 10. h3 {[%emt 0:01:53]} Nd7 {[%emt 0:01:57]} 11. Bg5 {[%emt 0:06:33]} a6 {[%emt 0:04:59]} 12. Qd2 {[%emt 0:04:50]} Nde5 {[%emt 0:10:00]} 13. Nh2 {[%emt 0:12:31]} Nd4 {[%emt 0:06:37]} 14. Nd5 {[%emt 0:07:16]} f6 {[%emt 0:03:25]} 15. Be3 {[%emt 0:00:35]} e6 {[%emt 0:02:21]} 16. Nc3 {[%emt 0:03:05]} f5 {[%emt 0:03:38]} 17. f4 {[%emt 0:04:44]} Nec6 {[%emt 0:01:33]} 18. Bf2 {[%emt 0:02:46]} Qd7 {[%emt 0:01:53]} 19. Nf1 {[%emt 0:05:28]} b5 {[%emt 0:03:03]} 20. Ne3 {[%emt 0:03:20]} b4 {[%emt 0:02:10]} 21. Ne2 {[%emt 0:01:08]} a5 {[%emt 0:05:00]} 22. Nxd4 {[%emt 0:02:00]} Nxd4 {[%emt 0:02:37]} 23. Nc2 {[%emt 0:01:21]} e5 {[%emt 0:06:48]} 24. Nxd4 {[%emt 0:06:56]} cxd4 {[%emt 0:00:04]} 25. a3 {[%emt 0:07:38]} fxe4 {[%emt 0:03:24]} 26. Bxe4 {[%emt 0:00:16]} exf4 {[%emt 0:03:12]} 27. g4 {[%emt 0:01:11]} h5 {[%emt 0:04:18]} 28. Bxb7 {[%emt 0:02:12]} Qxb7 {[%emt 0:00:03]} 29. gxh5 {[%emt 0:00:49]} Rf5 {[%emt 0:06:13]} 30. h4 {[%emt 0:03:28]} Be5 {[%emt 0:02:43]} 31. Qe2 {[%emt 0:04:17]} Rxh5 {[%emt 0:04:03]} 32. axb4 {[%emt 0:02:20]} Qxb4 {[%emt 0:04:31]} 33. Qe4 {[%emt 0:00:43]} Ra7 {[%emt 0:00:10]} 34. Bxd4 {[%emt 0:01:40]} Rf7 {[%emt 0:02:33]} 35. Bf2 {[%emt 0:00:36]} Kh7 {[%emt 0:01:55]} 36. d4 {[%emt 0:00:29]} Bg7 {[%emt 0:00:12]} 37. c5 {[%emt 0:00:26]} d5 {[%emt 0:01:58]} 38. Qd3 {[%emt 0:00:23]} f3 {[%emt 0:00:45]} 39. Re6 {[%emt 0:00:41]} Rhf5 {[%emt 0:00:50]} 40. c6 {[%emt 0:00:33]} Qb8 {[%emt 0:02:54]} 41. h5 {[%emt 0:20:17]} gxh5 {[%emt 0:04:27]} 42. Re7 {[%emt 0:03:13]} Kg8 {[%emt 0:00:56]} 43. Qe3 {[%emt 0:03:09]} Bf8 {[%emt 0:04:33]} 44. Rxf7 {[%emt 0:02:32]} Rxf7 {[%emt 0:00:04]} 45. Rxa5 {[%emt 0:01:12]} Qd6 {[%emt 0:03:56]} 46. Kf1 {[%emt 0:01:54]} Qg6 {[%emt 0:08:53]} 47. Rxd5 {[%emt 0:01:04]} Bh6 {[%emt 0:01:33]} 48. Qe8+ {[%emt 0:00:30]} Kg7 {[%emt 0:00:17]} 49. Qe5+ {[%emt 0:00:39]} Kh7 {[%emt 0:00:05]} 50. Qg3 {[%emt 0:01:02]} 0-1

[Event "Festival Groningen-A 2024"]
[Site "Groningen"]
[Date "2024.12.21"]
[Round "1.27"]
[White "Van Roon, Sjoerd"]
[Black "Wouters, Casper"]
[Result "1-0"]
[ECO "C54"]
[WhiteElo "2285"]
[BlackElo "2110"]
[Annotator "RC"]
[PlyCount "83"]
[EventDate "2024.12.21"]
[EventType "swiss"]
[EventCountry "NED"]
[SourceTitle "playchess.com"]
[Source "ChessBase"]
[SourceQuality "1"]
[TimeControl "40/5400+30:1800+30"]

1. e4 {[%emt 0:00:04]} e5 {[%emt 0:00:11]} 2. Nf3 {[%emt 0:00:04]} Nc6 {[%emt 0:00:06]} 3. Bc4 {[%emt 0:00:02]} Nf6 {[%emt 0:00:11]} 4. d3 {[%emt 0:00:40]} Bc5 {[%emt 0:00:12]} 5. c3 {[%emt 0:00:09]} d6 {[%emt 0:00:14]} 6. Nbd2 {[%emt 0:01:03]} O-O {[%emt 0:02:58]} 7. O-O {[%emt 0:01:27]} a5 {[%emt 0:02:21]} 8. Bb3 {[%emt 0:00:50]} h6 {[%emt 0:04:32]} 9. Re1 {[%emt 0:00:37]} Ba7 {[%emt 0:14:10]} 10. Nf1 {[%emt 0:00:32]} Be6 {[%emt 0:00:52]} 11. Bc2 {[%emt 0:01:13]} Ne7 {[%emt 0:07:17]} 12. d4 {[%emt 0:01:58]} Ng6 {[%emt 0:01:31]} 13. h3 {[%emt 0:01:30]} Re8 {[%emt 0:12:59]} 14. Ng3 {[%emt 0:03:18]} c6 {[%emt 0:08:04]} 15. Be3 {[%emt 0:06:06]} Qc7 {[%emt 0:02:38]} 16. Qd2 {[%emt 0:03:32]} Kh7 {[%emt 0:02:53]} 17. Nf5 {[%emt 0:08:10]} Ng8 {[%emt 0:12:31]} 18. a4 {[%emt 0:10:49]} N6e7 {[%emt 0:03:51]} 19. Rad1 {[%emt 0:04:33]} Rad8 {[%emt 0:01:33]} 20. N3h4 {[%emt 0:12:48]} Bb8 {[%emt 0:05:37]} 21. f4 {[%emt 0:03:11]} Ng6 {[%emt 0:02:38]} 22. Nxg6 {[%emt 0:08:47]} fxg6 {[%emt 0:00:10]} 23. Nh4 {[%emt 0:01:03]} Bc8 {[%emt 0:03:08]} 24. g4 {[%emt 0:06:08]} Qe7 {[%emt 0:03:49]} 25. Nf3 {[%emt 0:06:54]} Rf8 {[%emt 0:02:50]} 26. f5 {[%emt 0:01:27]} Kh8 {[%emt 0:00:53]} 27. Qf2 {[%emt 0:00:50]} g5 {[%emt 0:01:45]} 28. h4 {[%emt 0:00:52]} Nf6 {[%emt 0:00:28]} 29. Qg2 {[%emt 0:00:51]} d5 {[%emt 0:00:40]} 30. hxg5 {[%emt 0:01:16]} Nxe4 {[%emt 0:01:40]} 31. Nh4 {[%emt 0:00:35]} Rd6 {[%emt 0:00:59]} 32. Bxe4 {[%emt 0:00:56]} dxe4 {[%emt 0:00:45]} 33. dxe5 {[%emt 0:01:05]} Qxe5 {[%emt 0:00:17]} 34. Rxd6 {[%emt 0:00:08]} Qxd6 {[%emt 0:00:03]} 35. Ng6+ {[%emt 0:00:13]} Kg8 {[%emt 0:00:06]} 36. Nxf8 {[%emt 0:00:59]} Kxf8 {[%emt 0:00:08]} 37. gxh6 {[%emt 0:01:50]} gxh6 {[%emt 0:00:10]} 38. Qh3 {[%emt 0:00:41]} h5 {[%emt 0:00:59]} 39. gxh5 {[%emt 0:01:17]} Kg8 {[%emt 0:00:58]} 40. Qg2+ {[%emt 0:00:34]} Kf8 {[%emt 0:00:15]} 41. h6 {[%emt 0:30:48]} Bxf5 {[%emt 0:30:41]} 42. Rf1 {[%emt 0:00:32]} 1-0

[Event "Festival Groningen-A 2024"]
[Site "Groningen"]
[Date "2024.12.21"]
[Round "1.28"]
[White "Kazarjan, Gachatur"]
[Black "De Jong, Migchiel"]
[Result "1/2-1/2"]
[ECO "B20"]
[WhiteElo "2067"]
[BlackElo "2275"]
[Annotator "RC"]
[PlyCount "86"]
[EventDate "2024.12.21"]
[EventType "swiss"]
[EventCountry "NED"]
[SourceTitle "playchess.com"]
[Source "ChessBase"]
[SourceQuality "1"]
[TimeControl "40/5400+30:1800+30"]

1. e4 {[%emt 0:00:03]} c5 {[%emt 0:00:40]} 2. a3 {[%emt 0:01:38]} g6 {[%emt 0:01:24]} 3. Nc3 {[%emt 0:01:22]} Bg7 {[%emt 0:01:32]} 4. Bc4 {[%emt 0:00:05]} d6 {[%emt 0:01:01]} 5. d3 {[%emt 0:00:10]} Nc6 {[%emt 0:03:47]} 6. Ba2 {[%emt 0:01:16]} Nf6 {[%emt 0:01:16]} 7. f4 {[%emt 0:03:52]} Bg4 {[%emt 0:03:42]} 8. Nge2 {[%emt 0:06:52]} O-O {[%emt 0:00:52]} 9. h3 {[%emt 0:01:17]} Bxe2 {[%emt 0:04:08]} 10. Qxe2 {[%emt 0:01:39]} Nd4 {[%emt 0:01:27]} 11. Qf2 {[%emt 0:03:47]} e6 {[%emt 0:01:49]} 12. g4 {[%emt 0:07:09]} b5 {[%emt 0:02:37]} 13. Be3 {[%emt 0:00:14]} Rb8 {[%emt 0:02:30]} 14. Bxd4 {[%emt 0:06:25]} cxd4 {[%emt 0:03:24]} 15. Ne2 {[%emt 0:00:06]} Qa5+ {[%emt 0:02:11]} 16. Kf1 {[%emt 0:03:07]} b4 {[%emt 0:02:31]} 17. Bb3 {[%emt 0:25:37]} Qc5 {[%emt 0:03:28]} 18. a4 {[%emt 0:06:24]} Nd7 {[%emt 0:01:26]} 19. h4 {[%emt 0:03:00]} d5 {[%emt 0:06:25]} 20. h5 {[%emt 0:04:43]} dxe4 {[%emt 0:00:29]} 21. hxg6 {[%emt 0:00:10]} hxg6 {[%emt 0:00:22]} 22. dxe4 {[%emt 0:01:22]} d3 {[%emt 0:00:57]} 23. cxd3 {[%emt 0:00:19]} Qxf2+ {[%emt 0:00:45]} 24. Kxf2 {[%emt 0:00:01]} Nc5 {[%emt 0:00:42]} 25. Bc4 {[%emt 0:00:18]} Rfc8 {[%emt 0:01:25]} 26. e5 {[%emt 0:07:15]} b3 {[%emt 0:00:55]} 27. Rhc1 {[%emt 0:02:15]} Rb4 {[%emt 0:02:24]} 28. Bb5 {[%emt 0:03:45]} Rxb5 {[%emt 0:01:03]} 29. axb5 {[%emt 0:00:08]} Nxd3+ {[%emt 0:00:05]} 30. Ke3 {[%emt 0:00:04]} Nxc1 {[%emt 0:00:15]} 31. Rxc1 {[%emt 0:01:35]} Rb8 {[%emt 0:01:59]} 32. Nd4 {[%emt 0:00:52]} g5 {[%emt 0:01:24]} 33. Rc7 {[%emt 0:01:38]} gxf4+ {[%emt 0:00:29]} 34. Kxf4 {[%emt 0:00:12]} Rd8 {[%emt 0:01:07]} 35. Nxb3 {[%emt 0:05:30]} Rd5 {[%emt 0:00:37]} 36. Rc8+ {[%emt 0:00:03]} Kh7 {[%emt 0:00:15]} 37. Rc5 {[%emt 0:00:06]} Bxe5+ {[%emt 0:01:28]} 38. Ke4 {[%emt 0:00:06]} Rxc5 {[%emt 0:00:20]} 39. Nxc5 {[%emt 0:00:04]} Bxb2 {[%emt 0:00:08]} 40. Nd7 {[%emt 0:00:38]} Kg6 {[%emt 0:04:52]} 41. b6 {[%emt 0:31:34]} axb6 {[%emt 0:30:10]} 42. Nxb6 {[%emt 0:00:03]} Kg5 {[%emt 0:00:19]} 43. Nc4 {[%emt 0:00:13]} Kxg4 {[%emt 0:09:30]} 1/2-1/2